Cogmind - Beta 13 @@@ ROGUE MODE // 2024.04.02 @ 22:26:32 Player: Ciaphas Result: Self-destructed Performance ------------- Evolutions (4) 2000 Regions Visited (7) 1400 Robots Destroyed (65) 325 Value Destroyed (1682) 1682 Prototype IDs (32) 640 Alien Tech Used (0) 0 Bonus (324) 324 TOTAL SCORE: 6371 Bonus ------- High Alert Combat Kills 24 Aligned with FarCom 300 Cogmind --------- Core Integrity 537/850 Matter 15/300 Energy 100/100 System Corruption 2% Temperature Cool (0) Movement Flying (35) Location -6/Factory Parts ------- > --- POWER (1) -------- (None) > --- PROPULSION (5) --- Cooled VTOL Module > --- UTILITY (7) ------ Improved Signal Interpreter Hacking Suite Improved System Shield > --- WEAPON (2) ------- Remote Datajack > --- INVENTORY (5) ---- Faulty Heavy Deuterium Engine F-cell Engine Fission Core Proton Missile Launcher Power Sword Peak State ------------ > --- POWER ------------ Angular Momentum Engine > --- PROPULSION ------- Cesium-ion Thruster Cooled VTOL Module Cooled VTOL Module Cooled VTOL Module Nuclear Pulse Thruster > --- UTILITY ---------- Power Amplifier Small Storage Unit Improved Signal Interpreter Cloaking Device Hacking Suite System Shield Improved System Shield > --- WEAPON ----------- Remote Datajack Power Sword > --- INVENTORY -------- Angular Momentum Engine Improved Weapon Shielding Hardened Medium Armor Plating Hacking Suite Backup Laser III Proton Missile Launcher [Rating: 64] Favorites ----------- Power Light Nuclear Core Engine Improved Deuterium Engine Power Core Light Nuclear Core Propulsion Titanium Leg Treads Light Treads Leg Titanium Leg Wheel Wheel Flight Unit Cesium-ion Thruster Utility Large Storage Unit Device Structural Scanner Storage Large Storage Unit Processor Improved Signal Interpreter Hackware Hacking Suite Protection Light Armor Plating Weapon Powered Hammer Energy Gun Backup Laser III Energy Cannon Advanced Beam Cannon Ballistic Gun Assault Rifle Launcher Rocket Launcher Special Weapon Remote Datajack Impact Weapon Powered Hammer Slashing Weapon Power Sword Piercing Weapon Spear Special Melee Weapon Improved Datajack Build | -11 -10 -10 -10 -9 -8 -7 -6 ------- Run | Yrd Mat Min Exi Min Mat Fac Fac Slots Evolved 8 | . . . . . 4 2 2 Power . | . . . . . . . . Propulsion 3 | . . . . . 2 . 1 Utility 5 | . . . . . 2 2 1 Weapon . | . . . . . . . . Parts Attached 114 | 4 8 4 . 7 38 22 31 Power 15 | . 1 2 . 1 6 1 4 Engine 6 | . 1 . . . 1 1 3 Core 9 | . . 2 . 1 5 . 1 Reactor . | . . . . . . . . Propulsion 30 | 2 2 . . 2 12 8 4 Treads 5 | 2 2 . . 1 . . . Leg 11 | . . . . . 9 2 . Wheel 1 | . . . . 1 . . . Hover . | . . . . . . . . Flight 13 | . . . . . 3 6 4 Utility 45 | 1 5 2 . 1 17 8 11 Device 25 | 1 2 1 . . 11 3 7 Storage 4 | . 1 . . . 1 . 2 Processor 2 | . . 1 . . . 1 . Hackware 6 | . . . . . 2 2 2 Protection 8 | . 2 . . 1 3 2 . Artifact . | . . . . . . . . Weapon 24 | 1 . . . 3 3 5 12 Energy Gun 2 | . . . . . . . 2 Energy Cannon 2 | . . . . 2 . . . Ballistic Gun 1 | 1 . . . . . . . Ballistic Cannon . | . . . . . . . . Launcher 3 | . . . . 1 . 1 1 Special Weapon 3 | . . . . . . . 3 Impact Weapon 6 | . . . . . 3 1 2 Slashing Weapon 4 | . . . . . . . 4 Piercing Weapon 1 | . . . . . . 1 . Special Melee Weapon 2 | . . . . . . 2 . Unidentified Prototypes . | . . . . . . . . Corrupted Parts 1 | . . . . . 1 . . System Corruption 4 | . . . . . 4 . . Parts Lost 31 | . . . . 5 10 2 14 Power 6 | . . . . 1 2 . 3 Propulsion 9 | . . . . 2 3 . 4 Utility 15 | . . . . 1 5 2 7 Weapon 1 | . . . . 1 . . . Highest Loss Streak 9 | . . . . 4 4 2 9 To Critical Strikes . | . . . . . . . . Average Slot Usage (%) 95 | . 99 99 100 98 98 96 78 Engine 3 | . 14 2 . . . 5 5 Core 6 | . . 11 14 13 8 1 . Treads 9 | . 27 28 28 22 . . . Leg 10 | . . . . . 32 5 . Flight 8 | . . . . . 1 23 24 Device 10 | . 11 3 . . 20 8 6 Storage 8 | . 14 14 14 14 9 1 5 Processor 4 | . . 7 14 11 . 4 6 Hackware 8 | . . . . . 2 26 18 Protection 2 | . 2 3 . 1 4 1 . Ballistic Gun 8 | . 28 28 28 9 . . . Impact Weapon 6 | . . . . . 16 6 1 Special Melee Weapon 1 | . . . . . . 4 3 Naked Turns . | . . . . . . . . Heaviest Build 45 | 12 31 31 28 36 44 45 26 Greatest Support 68 | 40 40 40 40 40 68 64 26 Greatest Overweight (x) 3 | . . . . 3 3 1 1 Average Overweight (x) . | . . . . . 1 . . Largest Inventory Capacity 15 | 8 15 15 15 15 15 15 10 Average Capacity 12 | 8 13 15 15 15 15 7 8 Most Carried 15 | 6 11 14 15 15 15 13 8 Average Carried 9 | 2 7 12 14 13 11 5 5 Final Capacity 15 | 8 15 15 15 15 15 5 5 Final Carried 15 | 2 11 14 15 10 6 5 5 Class Distribution -------------------- 47% | Mutant 21% | Hacker-Sprinter 15% | Gladiator 15% | Hacker-Mutant Dominant Class ---------------- Mutant | -10/Materials Mutant | -10/Mines Mutant | -10/Exiles Mutant | -9/Mines Gladiator | -8/Materials Hacker-Sprinter | -7/Factory Hacker-Sprinter | -6/Factory Resources | -11 -10 -10 -10 -9 -8 -7 -6 ----------- Run | Yrd Mat Min Exi Min Mat Fac Fac Matter Collected 1295 | 250 166 128 . 160 336 50 205 Remotely . | . . . . . . . . Salvage Created 2354 | 122 285 271 . 15 1227 144 290 Parts 91 | 6 18 14 . 1 26 6 20 Haulers Intercepted 3 | . . . . . . 2 1 Recyclers Shooed 5 | 1 4 . . . . . . Parts Field Recycled . | . . . . . . . . Retrieved Matter . | . . . . . . . . Parts Self-Destructed . | . . . . . . . . Prevented . | . . . . . . . . Kills | -11 -10 -10 -10 -9 -8 -7 -6 ------- Run | Yrd Mat Min Exi Min Mat Fac Fac Combat Hostiles Destroyed 44 | . 3 7 . 3 27 2 2 Melee 14 | . . . . . 12 . 2 Guns 10 | . 3 7 . . . . . Cannons 1 | . . . . 1 . . . AOE 4 | . . . . 2 . 2 . Classes Destroyed 15 | 2 3 2 . 2 4 2 . Worker 5 | . . . . 1 1 . 3 Builder 2 | . . 1 . . 1 . . Tunneler 2 | 1 . . . . . . 1 Hauler 3 | . . . . . . 2 1 Recycler 5 | 1 2 1 . . 1 . . Operator 3 | . 2 . . . 1 . . Watcher 3 | . 1 . . . 2 . . Swarmer 12 | . . 5 . . 7 . . Grunt 15 | . 3 2 . . 10 . . Brawler 1 | . . . . . 1 . . Duelist 1 | . . . . . 1 . . Sentry 7 | . . . . . 7 . . Hunter 1 | . . . . . 1 . . Programmer 4 | . . . . . . 2 2 Assembled 2 | . . . . 2 . . . Best Kill Streak 6 | 2 2 3 . 3 6 1 4 Combat Bots Only 4 | . 2 3 . 2 4 1 1 Max Kills in Single Turn 2 | 1 1 2 . 1 1 1 1 Gunslinging 1 | . . 1 . . . . . Exploded 1 | . . . . 1 . 1 . Melee 1 | . . . . . 1 . 1 Uniques/NPCs Destroyed 1 | . . . . 1 . . . YI-UF0 (-9/Mines) Combat | -11 -10 -10 -10 -9 -8 -7 -6 -------- Run | Yrd Mat Min Exi Min Mat Fac Fac Hostile Shots Fired 431 | . 8 19 . 28 156 44 176 Missed 161 | . . 3 . 7 31 27 93 Damage Taken 4771 | . 247 188 . 1042 1873 253 1168 Core 830 | . 11 16 . 162 245 83 313 Absorbed by Shields 51 | . . . . . . . 51 Regen/Repaired (Parts) 205 | . 122 . . . . 16 67 Core Remaining (%) 66 | 100 . . . 24 55 88 . Volleys Fired 79 | 5 25 19 . 13 1 2 14 Largest 2 | 2 2 2 . 2 2 1 1 Hottest 136 | 40 40 40 . 136 136 39 40 Shots Fired 132 | 10 50 38 . 16 2 2 14 Gun 109 | 10 50 38 . . . . 11 Cannon 8 | . . . . 6 2 . . Launcher 13 | . . . . 10 . 2 1 Special 2 | . . . . . . . 2 Kinetic 98 | 10 50 38 . . . . . Thermal 19 | . . . . 6 2 . 11 Explosive 12 | . . . . 10 . 2 . Electromagnetic 1 | . . . . . . . 1 Robot Hit Streak 10 | 5 10 6 . 4 . 2 5 Robot Miss Streak 3 | 1 2 3 . 3 2 . 2 Penetration Max . | . . . . . . . . Secondary Targets 2 | . . 2 . . . . . Max Gunslinging Chain 1 | . . 1 . . . . . Shots Hit Robots 185 | 7 35 22 . 7 77 13 24 Core Hits 62 | 3 17 14 . 9 8 6 5 Critical Kills 3 | . . . . . 3 . . Critical Parts Destroyed 19 | . 1 . . . 15 3 . Critical Strikes 25 | . 1 . . . 18 3 3 Destroy 1 | . 1 . . . . . . Smash 21 | . . . . . 18 3 . Sever 3 | . . . . . . . 3 Melee Attacks 212 | . . . . . 126 57 29 Impact 164 | . . . . . 126 33 5 Slashing 21 | . . . . . . . 21 Piercing 17 | . . . . . . 17 . Sneak Attacks 13 | . . . . . 5 4 4 Combat Hostiles . | . . . . . . . . Follow-up Attacks 9 | . . . . . 9 . . Damage Inflicted 5777 | 70 378 276 . 283 3223 580 967 Guns 774 | 70 378 220 . . . . 106 Cannons 82 | . . . . 82 . . . Explosions 395 | . . . . 201 . 190 4 Melee 4470 | . . . . . 3223 390 857 Ramming 56 | . . 56 . . . . . Kinetic 668 | 70 378 220 . . . . . Thermal 188 | . . . . 82 . . 106 Explosive 391 | . . . . 201 . 190 . Electromagnetic 4 | . . . . . . . 4 Impact 3500 | . . . . . 3223 277 . Slashing 857 | . . . . . . . 857 Piercing 113 | . . . . . . 113 . Highest Corruption 7 | . . . . 1 7 3 3 Average Corruption 2 | . . . . 1 3 1 1 Corruption Purged 8 | . . . . . 5 . 3 Corruption Blocked . | . . . . . . . . Effects 22 | . . . . . 20 2 . Message Errors 5 | . . . . . 5 . . Matter Fused 6 | . . . . . 5 1 . Heat Flow Errors 1 | . . . . . 1 . . Energy Discharges 6 | . . . . . 6 . . Data Loss (minor) 2 | . . . . . 1 1 . Data Loss (major) 2 | . . . . . 2 . . Overload Shots . | . . . . . . . . Overflow Damage 1515 | . . . . . 1033 273 209 Projectiles 5 | . . . . . 5 . . Explosions . | . . . . . . . . Melee 1510 | . . . . . 1028 273 209 Knockbacks 8 | . . . . . 8 . . Impact 7 | . . . . . 7 . . Kinetic . | . . . . . . . . Secondary 1 | . . . . . 1 . . Self-Inflicted Damage 35 | . . . . 26 . . 9 Shots 3 | . . . . 2 . . 1 Rammed 6 | . . 6 . . . . . Targets Rammed 7 | . . 7 . . . . . Kicked . | . . . . . . . . Crushed 1 | . . 1 . . . . . Highest Temperature 243 | . 18 30 . 243 112 6 1 Average Temperature 40 | . 9 8 . 126 43 4 1 Received Heat Transfer 894 | . 48 63 . . 558 45 180 Effects 3 | . . . . 3 . . . Interference 3 | . . . . 3 . . . Siege Activations . | . . . . . . . . Robots Corrupted . | . . . . . . . . Combat Hostiles . | . . . . . . . . Parts Fried 31 | . . . . . 30 1 . Impact Corruptions 49 | . . . . . 44 5 . Robots Melted . | . . . . . . . . Combat Hostiles . | . . . . . . . . Parts Melted . | . . . . . . . . Heat Transferred 407 | . . . . 148 . . 259 Parts Sabotaged . | . . . . . . . . Parts Stolen . | . . . . . . . . Parts Stripped . | . . . . . . . . Power Chain Reactions . | . . . . . . . . Alert | -11 -10 -10 -10 -9 -8 -7 -6 ------- Run | Yrd Mat Min Exi Min Mat Fac Fac Peak Influence 430 | 10 110 222 . 60 430 198 236 Initial 179 | . 6 42 . . . 179 67 Average 91 | 6 37 47 . 32 147 96 63 Maximum Alert Level 2 | . . 1 . . 2 . 1 Low Security (%) 90 | 100 100 97 . 100 72 100 98 Level 1 5 | . . 2 . . 15 . 1 Level 2 3 | . . . . . 11 . . Level 3 . | . . . . . . . . Level 4 . | . . . . . . . . Level 5 . | . . . . . . . . High Security . | . . . . . . . . Max Security . | . . . . . . . . Squads Dispatched 26 | . 5 . . . 4 6 11 Investigation 11 | . 2 . . . 3 4 2 Extermination 3 | . . . . . . 1 2 Reinforcement 11 | . 3 . . . . 1 7 Assault . | . . . . . . . . Garrison 1 | . . . . . 1 . . Intercept . | . . . . . . . . Searches Triggered . | . . . . . . . . Construction Impeded . | . . . . . . . . Haulers Reinforced 1 | . . . . . . . 1 Active Scanning Responses . | . . . . . . . . Cargo Convoy Interrupts . | . . . . . . . . Stealth | -11 -10 -10 -10 -9 -8 -7 -6 --------- Run | Yrd Mat Min Exi Min Mat Fac Fac Distress Signals 8 | . 4 . . . 4 . . Communications Jammed . | . . . . . . . . Distress Signals . | . . . . . . . . Times Spotted 108 | . 9 7 . 6 45 16 25 Peak Tracking Total 7 | . 3 3 . 2 5 5 7 Tactical Retreats 19 | . 1 . . . 2 6 10 Traps | -11 -10 -10 -10 -9 -8 -7 -6 ------- Run | Yrd Mat Min Exi Min Mat Fac Fac Traps Triggered 11 | . 3 . . . 5 . 3 Indirectly . | . . . . . . . . Trap Hack Attempts . | . . . . . . . . Triggered . | . . . . . . . . Disarmed . | . . . . . . . . Reprogrammed . | . . . . . . . . Reused . | . . . . . . . . Traps Reconfigurated 5 | . . . . . 5 . . Traps Extracted . | . . . . . . . . Installed . | . . . . . . . . Triggered 1 | . . . . . . 1 . Machines | -11 -10 -10 -10 -9 -8 -7 -6 ---------- Run | Yrd Mat Min Exi Min Mat Fac Fac Machines Disabled 2 | . . . . 1 . 1 . Max in Single Turn 1 | . . . . 1 . 1 . Garrison Access 4 | . . . . . 1 1 2 Machines Repaired . | . . . . . . . . Machines Dismantled . | . . . . . . . . Machines Sabotaged . | . . . . . . . . Overloaded Fab Kills . | . . . . . . . . Hacking | -11 -10 -10 -10 -9 -8 -7 -6 --------- Run | Yrd Mat Min Exi Min Mat Fac Fac Machines Accessed 60 | . 5 . 2 1 14 20 18 Terminals 33 | . 3 . . 1 9 11 9 Fabricators 6 | . . . . . . 4 2 Repair Stations 5 | . 1 . . . 1 1 2 Recycling Units 5 | . 1 . . . 1 1 2 Scanalyzers 5 | . . . . . 2 2 1 Garrison Access 4 | . . . . . 1 1 2 Total Hacks 166 | . 12 . 2 3 38 49 62 Successful 94 | . 8 . 2 2 22 30 30 Failed 72 | . 4 . . 1 16 19 32 Catastrophic 11 | . 1 . . . . 2 8 Database Lockouts . | . . . . . . . . Manual 38 | . 3 . 1 . 10 9 15 Terminals 93 | . 7 . . 3 26 26 31 Fabricators 14 | . . . . . . 10 4 Repair Stations 16 | . 2 . . . 2 2 10 Recycling Units 20 | . 3 . . . 1 3 13 Scanalyzers 16 | . . . . . 8 7 1 Garrison Access 5 | . . . . . 1 1 3 Terminal Hacks 40 | . 3 . 2 2 11 13 9 Record 11 | . . . 1 1 4 5 . Part Schematic 1 | . . . . . . 1 . Prototype ID Bank 4 | . 2 . . . 2 . . Open DSF 5 | . . . . . . 3 2 Branch Access Points 1 | . . . . . . . 1 Alert Level 5 | . . . . . 1 2 2 Locate Traps 1 | . . . . . . 1 . Dispatch Records 1 | . . . . . 1 . . Transport Status 1 | . . . . . 1 . . Extermination Status 1 | . . . . . . . 1 Reinforcement Status 1 | . . . . . . . 1 Recall Investigation 1 | . . . . . . . 1 Recall Reinforcements 1 | . . . . . . . 1 Hauler Manifests 4 | . 1 . . . 2 1 . Zone Layout 1 | . . . . 1 . . . Derelict Proto ID Bank 1 | . . . 1 . . . . Fabricator Hacks 12 | . . . . . . 8 4 Load Schematic 6 | . . . . . . 4 2 Build 6 | . . . . . . 4 2 Repair Station Hacks 10 | . 2 . . . 1 2 5 Scan Component 5 | . 1 . . . 1 1 2 Repair 4 | . 1 . . . . 1 2 Refit 1 | . . . . . . . 1 Recycling Unit Hacks 12 | . 2 . . . 1 . 9 Recycle Component 1 | . . . . . . . 1 Process 2 | . . . . . . . 2 Report Inventory 3 | . 1 . . . 1 . 1 Retrieve Matter 6 | . 1 . . . . . 5 Scanalyzer 11 | . . . . . 6 5 . Insert Component 5 | . . . . . 3 2 . Analyze 6 | . . . . . 3 3 . Garrison Access Hacks 4 | . . . . . 1 1 2 Seal Access 4 | . . . . . 1 1 2 Unauthorized Hacks 5 | . 1 . . . 2 1 1 Terminals 5 | . 1 . . . 2 1 1 Botnet 5 | . 1 . . . 2 1 1 Fabricators . | . . . . . . . . Repair Stations . | . . . . . . . . Recycling Units . | . . . . . . . . Scanalyzers . | . . . . . . . . Garrison Access . | . . . . . . . . Data Cores Recovered 1 | . . . . . 1 . . Used . | . . . . . . . . Hacking Detections 39 | . 4 . . 1 8 15 11 Full Trace Events 7 | . . . . . 1 4 2 Feedback Events . | . . . . . . . . Feedback Blocked . | . . . . . . . . Robot Schematics Acquired . | . . . . . . . . Robots Built . | . . . . . . . . Authchips . | . . . . . . . . Time . | . . . . . . . . Total Robot Build Rating . | . . . . . . . . Part Schematics Acquired 6 | . . . . . 3 3 . Parts Built 6 | . . . . . . 4 2 Authchips . | . . . . . . . . Time 541 | . . . . . . 371 170 Total Part Build Rating 22 | . . . . . . 15 7 Parts Repaired 4 | . 1 . . . . 1 2 Time 93 | . 26 . . . . 13 54 Parts Recycled 1 | . . . . . . . 1 Recycled Matter 57 | . . . . . . . 57 Retrieved Matter 120 | . 63 . . . . . 57 Retrieved Components . | . . . . . . . . Parts Scanalyzed 5 | . . . . . 3 2 . Part Schematics Acquired 5 | . . . . . 3 2 . Parts Damaged . | . . . . . . . . Bothacking | -11 -10 -10 -10 -9 -8 -7 -6 ------------ Run | Yrd Mat Min Exi Min Mat Fac Fac Used RIF Installer . | . . . . . . . . Robots Hacked 5 | . . . . . . 3 2 Non-combat 4 | . . . . . . 3 1 Combat 1 | . . . . . . . 1 Robot Hacks Applied 6 | . . . . . . 4 2 parse_system 1 | . . . . . . . 1 no_distress 2 | . . . . . . 2 . find_fabricator 1 | . . . . . . 1 . check_alert 2 | . . . . . . 1 1 Relay Couplers Released . | . . . . . . . . Fabnet Peak Effective % . | . . . . . . . . Robots Rewired . | . . . . . . . . Allies Hacked . | . . . . . . . . Hacks Repelled . | . . . . . . . . Allies | -11 -10 -10 -10 -9 -8 -7 -6 -------- Run | Yrd Mat Min Exi Min Mat Fac Fac Total Allies 2 | . . 2 . . . . . Largest Group 2 | . . 2 1 . . . . Highest-Rated Group 62 | . . 62 31 . . . . Highest-Rated Ally 31 | . . 31 31 . . . . Total Orders . | . . . . . . . . Ally Attacks . | . . . . . . . . Total Damage . | . . . . . . . . Kills . | . . . . . . . . Allies Corrupted . | . . . . . . . . Allies Melted . | . . . . . . . . Intel | -11 -10 -10 -10 -9 -8 -7 -6 ------- Run | Yrd Mat Min Exi Min Mat Fac Fac Robot Analysis Total . | . . . . . . . . Derelict Logs Recovered 3 | . . 3 . . . . . Drone Launches . | . . . . . . . . Drone Recoveries . | . . . . . . . . Exploration | -11 -10 -10 -10 -9 -8 -7 -6 ------------- Run | Yrd Mat Min Exi Min Mat Fac Fac Turns Passed 9326 | 37 1004 1187 653 400 2894 1689 1462 Spaces Moved 7577 | 10 511 697 408 233 1141 2320 2257 Core . | . . . . . . . . Treads 1795 | 10 511 697 408 169 . . . Legs 1269 | . . . . . 1026 243 . Wheels 179 | . . . . 64 115 . . Hover . | . . . . . . . . Flight 4334 | . . . . . . 2077 2257 Fastest Speed 24 | 160 160 160 160 125 110 26 24 Average Speed 91 | 160 160 160 160 155 175 39 46 Slowest Speed 260 | 160 160 160 160 240 260 190 104 Overloaded Moves . | . . . . . . . . Propulsion Burnouts . | . . . . . . . . Robots Hopped 9 | . . . . . . 3 6 Cave-ins Triggered 1 | . . . . 1 . . . Exploration Rate (%) 63 | 2 77 98 81 62 88 45 52 Regions Visited 7 Branch Regions 3 Pre-discovered Areas 2 | . . 1 1 . . . . Known Exits Taken 4 | . . 1 1 . 1 1 . Unknown Exits Taken 3 | 1 1 . . 1 . . . Scrap Searched 1 | . . 1 . . . . . Spaces Dug 66 | . . . . . 16 40 10 Terrain Destroyed 180 | . . . . 86 16 68 10 Melee 66 | . . . . . 16 40 10 Projectile 1 | . . . . 1 . . . AOE 113 | . . . . 85 . 28 . Terrain Rammed . | . . . . . . . . Walls Destroyed . | . . . . . . . . Machines Disabled . | . . . . . . . . Actions | -11 -10 -10 -10 -9 -8 -7 -6 --------- Run | Yrd Mat Min Exi Min Mat Fac Fac Total 9571 | 22 650 730 408 253 1880 3005 2623 Wait 1470 | . 97 . . . 556 572 245 Move 7552 | 9 510 696 407 231 1140 2313 2246 Hop 8 | . . . . . . 3 5 Pick Up 55 | . 7 2 1 . 13 13 19 Fast Attach 43 | 1 2 1 . 1 15 12 11 Attach 33 | . . . . 4 8 6 15 Detach 16 | . 1 1 . . 1 5 8 Swap 38 | 3 6 3 . 2 15 4 5 Drop 62 | 4 2 1 . 1 19 18 17 Fire 79 | 5 25 19 . 13 1 2 14 Melee 198 | . . . . . 112 57 29 Ram . | . . . . . . . . Kick . | . . . . . . . . Crush 7 | . . 7 . . . . . Escape Stasis 10 | . . . . 1 . . 9 Rewire . | . . . . . . . . Trap . | . . . . . . . . Miscellaneous . | . . . . . . . . Route ------- -11/Scrapyard -10/Materials (discovered 4 exits: *Mat x2 / [*Min x2]) -10/Mines (discovered 3 exits: *Mat x2 / *Exi) -10/Exiles -9/Mines -8/Materials (discovered 2 exits: *Fac x2) -7/Factory (discovered 3 exits: *Fac x3) -6/Factory (discovered 5 exits: [*Fac x3] / *Low x2) History --------- Turn | Location | Event 22 | -11/Scrapyard | Discovered new exit (range 3) 38 | -11/Scrapyard | Entered Materials 146 | -10/Materials | Discovered new exit (range 16) 185 | -10/Materials | Met 8R-AWN 228 | -10/Materials | Discovered new exit (range 12) 317 | -10/Materials | Build established: Mutant 401 | -10/Materials | Discovered new exit (range 15) 585 | -10/Materials | Repaired Lgt. Treads 744 | -10/Materials | Discovered new exit (range 16) 900 | -10/Materials | Derelicts attacked the area 1042 | -10/Materials | Entered Mines 1044 | -10/Mines | Followed 8R-AWN into the Mines 1086 | -10/Mines | Learned location of Zion (-7) 1170 | -10/Mines | Learned Materials stockpile data 1372 | -10/Mines | Received a Rocket Launcher from a helpful Derelict 1397 | -10/Mines | Discovered new exit (range 7) 1433 | -10/Mines | Learned location of 1 exit from Materials 1598 | -10/Mines | Discovered new exit (range 5) 1627 | -10/Mines | Identified exit to Materials 1820 | -10/Mines | Received a Mining Laser from a helpful Derelict 1912 | -10/Mines | Escorted by a lone wolf Derelict 2223 | -10/Mines | Discovered new exit (range 5) 2228 | -10/Mines | Identified exit to Exiles 2229 | -10/Mines | Entered Exiles 2229 | -10/Exiles | Accompanied by 1 ally 2274 | -10/Exiles | Welcomed by 8R-AWN 2300 | -10/Exiles | Met EX-HEX 2375 | -10/Exiles | Met EX-DEC 2405 | -10/Exiles | Visited The Gauntlet 2645 | -10/Exiles | Met EX-BIN 2665 | -10/Exiles | Aligned with FarCom system 2666 | -10/Exiles | Given EX-Vault access code 2706 | -10/Exiles | Opened EX-Vault 2721 | -10/Exiles | Found Trap Reconfigurator 2755 | -10/Exiles | Warned to stay clear of 0b10 Research branches 2826 | -10/Exiles | Learned about 8R-AWN's background 2861 | -10/Exiles | Discovered new exit (range 14) 2880 | -10/Exiles | Identified exit to Mines 2882 | -10/Exiles | Left Exiles lab with Trap Reconfigurator 2882 | -10/Exiles | Entered Mines 2883 | -9/Mines | Assembled infested the area 3152 | -9/Mines | Core integrity fell below 50% 3160 | -9/Mines | Destroyed YI-UF0 3180 | -9/Mines | Lost 4 parts (1p2n1w) 3228 | -9/Mines | Crushed by falling debris 3234 | -9/Mines | Discovered new exit (range 9) 3282 | -9/Mines | Entered Materials 3282 | -8/Materials | Evolved 4 slots: Propulsion x2, Utility x2 3283 | -8/Materials | Identified exit to Factory 4211 | -8/Materials | Discovered exit to Factory (range 16) 4452 | -8/Materials | Build established: Gladiator 5667 | -8/Materials | Garrison activated, responded to threat 5775 | -8/Materials | Lost 4 parts (1n3u) 5864 | -8/Materials | Lost 3 parts (2n1u) 6154 | -8/Materials | Build established: Hacker-Mutant 6176 | -8/Materials | Entered Factory 6176 | -7/Factory | Evolved 2 slots: Utility x2 6245 | -7/Factory | Discovered new exit (range 9) 6467 | -7/Factory | Fabricated Hacking Suite? 6850 | -7/Factory | Repaired Structural Scanner 6871 | -7/Factory | Build established: Hacker-Sprinter 7013 | -7/Factory | Fabricated Cld. VTOL Module? 7210 | -7/Factory | Discovered new exit (range 13) 7436 | -7/Factory | Discovered new exit (range 8) 7438 | -7/Factory | Identified exit to Factory 7574 | -7/Factory | Fabricated Cld. VTOL Module? 7599 | -7/Factory | Fabricated Cld. VTOL Module? 7865 | -7/Factory | Entered another Factory area 7865 | -6/Factory | Evolved 2 slots: Propulsion x1, Utility x1 8150 | -6/Factory | Identified exit to Lower Caves 8158 | -6/Factory | Build established: Hacker-Mutant 8224 | -6/Factory | Identified exit to DSF 8378 | -6/Factory | Fabricated Cld. VTOL Module? 8563 | -6/Factory | Discovered new exit (range 15) 8833 | -6/Factory | Repaired Cesium-ion Thruster 8925 | -6/Factory | Fabricated Hacking Suite (x1) 8938 | -6/Factory | Discovered new exit (range 9) 8976 | -6/Factory | Build established: Hacker-Sprinter 9123 | -6/Factory | Discovered new exit (range 14) 9208 | -6/Factory | Lost 9 parts (2p3n4u) 9327 | -6/Factory | Repaired Cld. VTOL Module 9327 | -6/Factory | Self-destructed Last Messages --------------- 09175_ Dropped Remote Datajack. 09176_ Acquired Prototype Engine. 09177_ Hacking Suite destroyed. 09179_ Acquired Remote Datajack. 09259_ Acquired Fission Core. 09292_ Connecting with Repair Station... >>Scan(Cld. VTOL Module) Scanning Cld. VTOL Module... Ready to Repair: Cld. VTOL Module Rating: 4p Time: 35 >>Repair Repairing Cld. VTOL Module... ETC: 35 09322_ Power Amplifier destroyed. 09324_ Fusion Compressor destroyed. 09326_ Cloaking Device destroyed. 09327_ Repair station completes Cld. VTOL Module repairs. Map ----- +----------------------------------------------------+ | # #?????? | | + """ """ #?????? | | # """ """ """ #?????? | | # """ """ G" #?????? | | # """ #?????? | | # ###???? | | ###+###### #???? | | ##### #???? | | ##### #???# #???? | | #???# #######+##??? | | #???# # !! #??? | | #???# # ! #??? | | #???# ######## + #??? | | #####g######## # #??? | | # g # # #??? | | # ###+####### + ] """ #??? | | # # #??# # """ #??? | | # # #??# # """ !#??? | | # # #??# # #??? | | # # """ #??# #####+##+#??? | | + "" "" # """ #??# #???# #??? | | # "" "" # """ #??# #???# #??? | | # """ """ ########### #???# #??? | | # """ """ = #?#= g[ ## #???# #??? | | # """ """ #?# g ## ##??# #??? | | # #?# "@"" # g #??# #??? | | ##############?# "R"" b #??# #??? | | #??????????????# """ # ! #??# #??? | | #??????????????# ## ##??# #??? | | #??????????????######### #???# #??? | | #??????????????????????# #???# #??? | | #??????????????????????# #???# #??? | | #??????????????????????# ##### #??? | | #????????????########### #??? | | ###########??# !## ##### #??? | | # #??# """ #? #???# #??? | | # #??# """ #? #??##+##+#### | | " ]]] #??# """ ## #### # | | # ]]] #??# + + """ ""# | | # ]]] """ #??# """ # ##### """ T"# | | # """ #??# """ # #???# """ ""# | | # """ #??# l""" # #???# # | | # #??#]g # #???# """ # | | ###"#############+##### ##### """ # | | # """ # | | # # | | + # | | # [[[ # | | # [[ # | | #################+######### # [[* # | +----------------------------------------------------+ Best States ------------- Heat Dissipation 44 Energy Generation 29 Energy Capacity 300 Matter Stores 300 Matter Capacity 300 Sight Range 16 Terrain Scan Density 10 Cloak Strength 2 Power Amplification 20 Armor Coverage 225 Weapon Shielding 66 Melee Speed Boost 40 Evasion (%) 65 Recoil Reduction 2 Offensive Hacking 30 Defensive Hacking 22 Item Schematics ----------------- Hvy. Particle Gun | -8/Materials | Scanalyzed Hacking Suite | -8/Materials | Scanalyzed Structural Scanner | -8/Materials | Scanalyzed Imp. VTOL Module | -7/Factory | Scanalyzed Cld. VTOL Module | -7/Factory | Hacked Med. Storage Unit | -7/Factory | Scanalyzed Robot Schematics ------------------ None Fabricated ------------ Hacking Suite | x1 | -7/Factory Cld. VTOL Module | x1 | -7/Factory Cld. VTOL Module | x1 | -7/Factory Cld. VTOL Module | x1 | -7/Factory Cld. VTOL Module | x1 | -6/Factory Hacking Suite | x1 | -6/Factory Alien Tech Used ----------------- None Achievements -------------- Part-time Excavator Challenges ------------ None Game ------ Seed AluminumImprovedLauncher Manual? 0 Play Time 02:01:53 Cumulative 6.4 hours Start 2024.04.02 @ 20:17:39 End 2024.04.02 @ 22:26:32 Sessions 1 Manual Loads 0 Difficulty Rogue Special Mode None Game No. 11 Rogue 11 Adventurer 0 Explorer 0 Win Type - Total 0 Types 0/0/0/0/0/0/0/0/0 Lore% 15 Gallery% 12 Achievement% 23 Wizard Run 0 Options --------- Layout 1 ASCII 0 Keyboard 0 Movement Mouse Keybinds 0 Fullscreen 2 Font 32/Cog Map View 50x35 Zoom Use 0% Tactical HUD 1 Map Filters NONE Filters NONE Steam 1 RUN: ce726152-4f05-4baa-947e-79e70aae28d7